fUSD/lending_fUSD_20260401
["ID","MTS","AMOUNT","RATE_DAILY","PERIOD"]
[419255195,1775058641240,-500.0,0.00013699,2]
[419255196,1775058641249,-500.0,0.00013699,2]
[419255197,1775058641258,-500.0,0.00013699,2]
[419255198,1775058641267,-500.0,0.00013699,2]
[419255199,1775058641276,-350.0,0.00013699,2]
[419255200,1775058641285,-150.0,0.00013699,2]
[419255201,1775058641295,-484.75057222,0.00013699,2]
[419255202,1775058641304,-500.0,0.00013699,2]
[419255203,1775058641313,-500.0,0.00013699,2]
[419255204,1775058641323,-500.0,0.00013699,2]
[419255205,1775058641332,-500.0,0.00013699,2]
[419255206,1775058641341,-500.0,0.00013699,2]
[419255207,1775058641350,-500.0,0.00013699,2]
[419255208,1775058641359,-500.0,0.00013699,2]
[419255210,1775058641368,-500.0,0.00013699,2]
[419255211,1775058641377,-500.0,0.00013699,2]
[419255212,1775058641386,-500.0,0.00013699,2]
[419255213,1775058641395,-500.0,0.00013699,2]
[419255214,1775058641404,-500.0,0.00013699,2]
[419255215,1775058641414,-500.0,0.00013699,2]
[419255216,1775058641423,-150.0,0.00013699,2]
[419255217,1775058641432,-500.0,0.00013699,2]
[419255218,1775058641441,-500.0,0.00013699,2]
[419255219,1775058641450,-500.0,0.00013699,2]
[419255220,1775058641459,-500.0,0.00013699,2]
[419255221,1775058641468,-500.0,0.00013699,2]
[419255222,1775058641477,-500.0,0.00013699,2]
[419255223,1775058641486,-500.0,0.00013699,2]
[419255224,1775058641495,-500.0,0.00013699,2]
[419255225,1775058641505,-500.0,0.00013699,2]
[419255226,1775058641514,-500.0,0.00013699,2]
[419255227,1775058641524,-275.99111668,0.00013699,2]
[419255228,1775058641533,-500.0,0.00013699,2]
[419255229,1775058641543,-623.45997877,0.00013699,2]
[419255230,1775058641552,-250.0,0.00013742,2]
[419255231,1775058641562,-2022.82737118,0.00013872,2]
[419255232,1775058641571,-500.0,0.00013954,2]
[419255233,1775058641580,-500.0,0.00013964,2]
[419255234,1775058641589,-151.0,0.00013964,2]
[419255235,1775058641598,-151.0,0.00013964,2]
[419255236,1775058641607,-151.0,0.00013964,2]
[419255237,1775058641616,-151.0,0.00013964,2]
[419255238,1775058641626,-151.0,0.00013964,2]
[419255239,1775058641635,-151.0,0.00013964,2]
[419255240,1775058641644,-151.0,0.00013964,2]
[419255241,1775058641653,-151.0,0.00013964,2]
[419255242,1775058641663,-151.0,0.00013964,2]
[419255243,1775058641672,-151.0,0.00013964,2]
[419255244,1775058641680,-151.0,0.00013964,2]
[419255245,1775058641690,-151.0,0.00013964,2]
[419255246,1775058641699,-4635.64,0.00014056,2]
[419255247,1775058641708,-2022.82737118,0.00014097,2]
[419255248,1775058641718,-358.11,0.00014266,2]
[419255249,1775058641727,-2022.82737118,0.00014323,2]
[419255250,1775058641736,-160.0,0.00014347,2]
[419255251,1775058641747,-160.0,0.00014347,2]
[419255252,1775058641756,-2841.18,0.00014384,2]
[419255253,1775058641765,-1068.37,0.00014389,2]
[419255254,1775058641775,-1600.0,0.00014457,2]
[419255255,1775058641784,-823.0,0.00014467,2]
[419255256,1775058641793,-2022.82737118,0.00014548,2]
[419255257,1775058641802,-500.0,0.00014712,2]
[419255258,1775058641811,-2500.0,0.0001473,2]
[419255259,1775058641820,-5000.0,0.0001473,2]
[419255260,1775058641830,-207.28999999,0.00014731,2]
[419255261,1775058641839,-2022.82737118,0.00014773,2]
[419255262,1775058641851,-2298.32214227,0.000148,2]
[419255263,1775058641860,-500.0,0.00014829,2]
[419255264,1775058641870,-500.0,0.00014829,2]
[419255265,1775058641880,-500.0,0.00014829,2]
[419255266,1775058641890,-500.0,0.00014829,2]
[419255267,1775058641900,-629.75253437,0.00014829,2]
[419255268,1775058641908,-244.31712058,0.00014829,2]
[419255269,1775058641919,-500.0,0.00014829,2]
[419255270,1775058641930,-568.05048667,0.00014829,2]
[419255271,1775058641941,-500.0,0.00014829,2]
[419255272,1775058641952,-500.0,0.00014829,2]
[419255273,1775058641962,-500.0,0.00014829,2]
[419255274,1775058641971,-447.25921469,0.00014829,2]
[419255275,1775058641980,-200.0,0.0001483,5]
[419255276,1775058641989,-200.0,0.0001483,5]
[419255277,1775058641999,-200.0,0.0001483,5]
[419255278,1775058642007,-193.040741,0.0001483,5]
[419255279,1775058642017,-500.0,0.0001483,2]
[419255280,1775058642026,-487.27760899,0.0001483,2]
[419255281,1775058642035,-963987.3358,0.0001483,2]
[419255282,1775058642044,-578.20924308,0.00014831,2]
[419255283,1775058642054,-201.93286099,0.00014831,2]
[419255285,1775058642062,-500.0,0.00014831,2]
[419255286,1775058642072,-1377.42282659,0.00014831,2]
[419255287,1775058642081,-500.0,0.00014831,2]
[419255288,1775058642090,-200.0,0.00014831,2]
[419255289,1775058642099,-500.0,0.00014831,2]
[419255290,1775058642110,-500.0,0.00014831,2]
[419255291,1775058642120,-500.0,0.00014831,2]
[419255292,1775058642130,-500.0,0.00014831,2]
[419255293,1775058642140,-500.0,0.00014831,2]
[419255294,1775058642150,-500.0,0.00014831,2]
[419255295,1775058642159,-500.0,0.00014831,2]
[419255296,1775058642169,-500.0,0.00014831,2]
[419255297,1775058642179,-500.0,0.00014831,2]
[419255298,1775058642189,-500.0,0.00014831,2]
[419255299,1775058642200,-500.0,0.00014831,2]
[419255300,1775058642211,-500.0,0.00014831,2]
[419255301,1775058642220,-151.0,0.00014831,2]
[419255302,1775058642229,-500.0,0.00014831,2]
[419255303,1775058642239,-500.0,0.00014831,2]
[419255304,1775058642249,-500.0,0.00014831,2]
[419255305,1775058642258,-500.0,0.00014831,2]
[419255306,1775058642268,-500.0,0.00014831,2]
[419255307,1775058642279,-500.0,0.00014831,2]
[419255308,1775058642289,-500.0,0.00014831,2]
[419255309,1775058642299,-500.0,0.00014831,2]
[419255310,1775058642308,-500.0,0.00014831,2]
[419255311,1775058642319,-500.0,0.00014831,2]
[419255312,1775058642328,-500.0,0.00014831,2]
[419255313,1775058642338,-500.0,0.00014831,2]
[419255314,1775058642347,-500.0,0.00014831,2]
[419255315,1775058642357,-500.0,0.00014831,2]
[419255316,1775058642367,-500.0,0.00014831,2]
[419255317,1775058642377,-500.0,0.00014831,2]
[419255318,1775058642387,-500.0,0.00014831,2]
[419255319,1775058642398,-510.80849174,0.00014831,2]
[419255320,1775058642408,-500.0,0.00014831,2]
[419255321,1775058642418,-200.0,0.00014831,2]
[419255322,1775058642428,-174.61919141,0.00014831,2]
[419255323,1775058642438,-250.0,0.00014831,2]
[419255324,1775058642447,-250.0,0.00014831,2]
[419255325,1775058642456,-250.0,0.00014831,2]
[419255326,1775058642465,-250.0,0.00014831,2]
[419255327,1775058642475,-250.0,0.00014831,2]
[419255328,1775058642485,-250.0,0.00014831,2]
[419255329,1775058642494,-250.0,0.00014831,2]
[419255330,1775058642504,-250.0,0.00014831,2]
[419255331,1775058642513,-250.0,0.00014831,2]
[419255332,1775058642523,-250.0,0.00014831,2]
[419255333,1775058642532,-250.0,0.00014831,2]
[419255334,1775058642541,-250.0,0.00014831,2]
[419255335,1775058642551,-262.90206542,0.00014831,2]
[419255336,1775058642560,-743.50770149,0.00014831,2]
[419255337,1775058642569,-500.0,0.00014831,2]
[419255338,1775058642578,-500.0,0.00014831,2]
[419255339,1775058642587,-500.0,0.00014831,2]
[419255340,1775058642596,-500.0,0.00014831,2]
[419255341,1775058642606,-500.0,0.00014831,2]
[419255342,1775058642616,-9878.65,0.00014853,2]
[419255343,1775058642626,-924.13,0.00014853,2]
[419255344,1775058642636,-6979.65,0.00014853,2]
[419255345,1775058642646,-500.0,0.00014886,2]
[419255346,1775058642656,-151.0,0.00014886,2]
[419255347,1775058642665,-272.62944185,0.00014886,2]
[419255348,1775058642676,-246.3047,0.000149,12]
[419255349,1775058642686,-2298.32214223,0.00014922,2]
[419255350,1775058642695,-6410.18,0.0001493,2]
[419255351,1775058642706,-500.0,0.00014941,2]
[419255352,1775058642716,-151.0,0.00014941,2]
[419255353,1775058642727,-282.71673119,0.00014941,2]
[419255354,1775058642738,-30000.0,0.00014972,2]
[419255355,1775058642747,-358.11,0.00014979,2]
[419255356,1775058642756,-500.0,0.00014996,2]
[419255357,1775058642766,-151.0,0.00014996,2]
[419255358,1775058642775,-293.17725025,0.00014996,2]
[419255359,1775058642787,-2022.82737118,0.00014999,2]
[419255360,1775058642797,-160.0,0.00015,2]
[419255361,1775058642807,-500.0,0.00015,2]
[419255362,1775058642816,-520.06,0.00015,2]
[419255363,1775058642826,-500.0,0.00015,2]
[419255364,1775058642836,-500.0,0.00015,2]
[419255365,1775058642845,-500.0,0.00015,2]
[419255366,1775058642855,-500.0,0.00015,2]
[419255367,1775058642866,-500.0,0.00015,2]
[419255368,1775058642876,-500.0,0.00015,2]
[419255369,1775058642886,-500.0,0.00015,2]
[419255370,1775058642896,-500.0,0.00015,2]
[419255371,1775058642906,-500.0,0.00015,2]
[419255372,1775058642915,-500.0,0.00015,2]
[419255373,1775058642924,-500.0,0.00015,2]
[419255374,1775058642933,-500.0,0.00015,2]
[419255375,1775058642943,-500.0,0.00015,2]
[419255376,1775058642951,-500.0,0.00015,2]
[419255378,1775058642961,-500.0,0.00015,2]
[419255380,1775058642970,-500.0,0.00015,2]
[419255381,1775058642980,-500.0,0.00015,2]
[419255382,1775058642989,-500.0,0.00015,2]
[419255383,1775058642998,-500.0,0.00015,2]
[419255384,1775058643008,-500.0,0.00015,2]
[419255385,1775058643017,-500.0,0.00015,2]
[419255386,1775058643026,-500.0,0.00015,2]
[419255387,1775058643313,-500.0,0.00015,2]
[419255388,1775058643323,-500.0,0.00015,2]
[419255389,1775058643332,-500.0,0.00015,2]
[419255390,1775058643342,-2298.32214223,0.00015044,2]
[419255391,1775058643352,-500.0,0.00015051,2]
[419255392,1775058643362,-151.0,0.00015051,2]
[419255393,1775058643372,-304.02480851,0.00015051,2]
[419255394,1775058643382,-2841.18,0.00015068,2]
[419255395,1775058643392,-500.0,0.00015106,2]
[419255396,1775058643402,-151.0,0.00015106,2]
[419255397,1775058643411,-315.27372642,0.00015106,2]
[419255398,1775058643421,-1045.0,0.00015142,2]
[419255399,1775058643431,-1355.434,0.00015142,2]
[419255400,1775058643441,-621.0,0.00015142,2]
[419255401,1775058643451,-150.0,0.00015142,2]
[419255402,1775058643461,-1263.0,0.00015142,2]
[419255403,1775058643471,-3767.0,0.00015142,2]
[419255404,1775058643480,-415.0,0.00015142,2]
[419255405,1775058643491,-6016.0,0.00015142,2]
[419255406,1775058643500,-500.0,0.00015161,2]
[419255407,1775058643510,-151.0,0.00015161,2]
[419255408,1775058643520,-326.9388543,0.00015161,2]
[419255409,1775058643530,-2298.32214223,0.00015167,2]
[419255410,1775058643540,-510.0,0.00015201,3]
[419255411,1775058643550,-10000.0,0.00015205,2]
[419255412,1775058643560,-500.0,0.00015216,2]
[419255413,1775058643570,-151.0,0.00015216,2]
[419255414,1775058643580,-339.03559191,0.00015216,2]
[419255415,1775058643591,-2022.82737118,0.00015224,2]
[419255417,1775058643600,-223.399734,0.00015268,7]
[419255418,1775058643611,-401.135735,0.00015268,7]
[419255419,1775058643620,-500.0,0.00015271,2]
[419255420,1775058643630,-151.0,0.00015271,2]
[419255421,1775058643640,-2298.32214223,0.00015289,2]
[419255422,1775058643651,-2000.0,0.000153,2]
[419255423,1775058643661,-500.0,0.00015326,2]
[419255424,1775058643671,-151.0,0.00015326,2]
[419255425,1775058643681,-264.42,0.00015338,2]
[419255426,1775058643692,-500.0,0.00015342,2]
[419255427,1775058643702,-785.2,0.00015344,2]
[419255428,1775058643712,-445.0,0.00015376,2]
[419255429,1775058643722,-229.94935529,0.00015379,2]
[419255430,1775058643732,-200.0,0.00015379,2]
[419255431,1775058643742,-200.0,0.00015379,2]
[419255432,1775058643751,-181.08010149,0.00015379,2]
[419255433,1775058643761,-771.01748645,0.00015379,2]
[419255434,1775058643771,-500.0,0.00015381,2]
[419255435,1775058643781,-151.0,0.00015381,2]
[419255436,1775058643790,-2000.0,0.000154,2]
[419255437,1775058643800,-2298.32214223,0.00015411,2]
[419255438,1775058643809,-500.0,0.00015436,2]
[419255439,1775058643819,-151.0,0.00015436,2]
[419255440,1775058643829,-2022.82737118,0.00015449,2]
[419255441,1775058643839,-500.0,0.00015452,2]
[419255442,1775058643849,-500.0,0.00015452,2]
[419255443,1775058643859,-500.0,0.00015452,2]
[419255444,1775058643868,-500.0,0.00015452,2]
[419255445,1775058643878,-500.0,0.00015452,2]
[419255446,1775058643888,-500.0,0.00015452,2]
[419255447,1775058643898,-500.0,0.00015452,2]
[419255448,1775058643908,-388.07199871,0.00015452,2]
[419255449,1775058643918,-500.0,0.00015452,2]
[419255450,1775058643927,-500.0,0.00015452,2]
[419255451,1775058643937,-500.0,0.00015452,2]
[419255452,1775058643948,-500.0,0.00015452,2]
[419255453,1775058643958,-500.0,0.00015452,2]
[419255454,1775058643968,-500.0,0.00015452,2]
[419255455,1775058643978,-500.0,0.00015452,2]
[419255456,1775058643988,-500.0,0.00015452,2]
[419255457,1775058643997,-500.0,0.00015452,2]
[419255458,1775058644006,-500.0,0.00015452,2]
[419255459,1775058644016,-500.0,0.00015452,2]
[419255460,1775058644025,-500.0,0.00015452,2]
[419255461,1775058644036,-500.0,0.00015452,2]
[419255462,1775058644046,-500.0,0.00015452,2]
[419255463,1775058644055,-500.0,0.00015452,2]
[419255464,1775058644065,-500.0,0.00015452,2]
[419255465,1775058644075,-500.0,0.00015452,2]
[419255466,1775058644085,-500.0,0.00015452,2]
[419255467,1775058644096,-569.11643271,0.00015452,2]
[419255468,1775058644106,-319.40216955,0.00015491,2]
[419255469,1775058644116,-530.81548879,0.00015491,2]
[419255470,1775058644125,-1755.29204768,0.00015491,2]
[419255471,1775058644135,-11981.23922054,0.00015491,2]
[419255472,1775058644145,-7800.25857076,0.00015491,2]
[419255473,1775058644155,-2298.32214223,0.00015533,2]
[419255474,1775058644165,-500.0,0.00015573,2]
[419255475,1775058644176,-500.0,0.00015573,2]
[419255476,1775058644185,-500.0,0.00015573,2]
[419255477,1775058644196,-500.0,0.00015573,2]
[419255478,1775058644206,-418.05622523,0.00015573,2]
[419255479,1775058644216,-500.0,0.00015573,2]
[419255480,1775058644226,-500.0,0.00015573,2]
[419255481,1775058644236,-11981.23922053,0.00015573,2]
[419255482,1775058644245,-1500000.0,0.0001558,2]
[419255483,1775058644254,-445.0,0.00015591,2]
[419255484,1775058644264,-445.0,0.00015592,2]
[419255485,1775058644273,-2000.0,0.000156,2]
[419255486,1775058644283,-150.04960437,0.000156,2]
[419255487,1775058644293,-785.2,0.00015618,2]
[419255489,1775058644302,-11981.23922053,0.00015655,2]
[419255490,1775058644312,-2298.32214223,0.00015656,2]
[419255491,1775058644321,-2022.82737118,0.00015675,2]
[419255492,1775058644331,-2766.14,0.00015689,2]
[419255493,1775058644340,-187.137,0.00015689,2]
[419255494,1775058644349,-358.11,0.00015692,2]
[419255495,1775058644359,-445.0,0.00015705,2]
[419255496,1775058644369,-11981.23922053,0.00015736,2]
[419255497,1775058644378,-427.0,0.0001574,2]
[419255498,1775058644387,-194.8993516,0.00015745,2]
[419255499,1775058644396,-217.03281835,0.00015745,2]
[419255500,1775058644406,-399.0,0.00015753,2]
[419255501,1775058644415,-2841.18,0.00015753,2]
[419255502,1775058644424,-2298.32214223,0.00015778,2]
[419255503,1775058644433,-237.6216955,0.00015795,2]
[419255504,1775058644443,-2000.0,0.000158,2]
[419255505,1775058644452,-200.0,0.00015811,2]
[419255506,1775058644462,-11981.23922053,0.00015818,2]
[419255507,1775058644471,-203.1206751,0.00015825,2]
[419255508,1775058644480,-299.0,0.00015831,2]
[419255509,1775058644489,-264.42745679,0.00015861,2]
[419255510,1775058644498,-500.0,0.00015871,2]
[419255511,1775058644509,-200.0,0.00015871,2]
[419255512,1775058644518,-500.0,0.00015872,2]
[419255513,1775058644527,-500.0,0.00015872,2]
[419255514,1775058644536,-500.0,0.00015872,2]
[419255515,1775058644546,-200.0,0.00015872,2]
[419255516,1775058644554,-150.39535805,0.0001589,2]
[419255517,1775058644563,-2000.0,0.0001589,2]
[419255518,1775058644572,-500.0,0.00015891,2]
[419255519,1775058644581,-206.04,0.00015892,2]
[419255520,1775058644591,-1068.37,0.00015893,2]
[419255521,1775058644600,-260.0,0.00015899,2]
[419255522,1775058644610,-1022.44495488,0.000159,2]
[419255523,1775058644620,-2298.32214223,0.000159,2]
[419255524,1775058644630,-2022.82737118,0.000159,2]
[419255525,1775058644641,-11981.23922053,0.000159,2]
[419255526,1775058644651,-435.0,0.000159,5]
[419255527,1775058644660,-200.0,0.00015927,2]
[419255528,1775058644670,-200.0,0.00015927,2]
[419255529,1775058644681,-187.78006525,0.00015927,2]
[419255530,1775058644691,-799.54513345,0.00015927,2]
[419255531,1775058644700,-299.0,0.00015931,2]
[419255532,1775058644709,-512.0,0.00015939,2]
[419255533,1775058644720,-1000.0,0.0001597,2]
[419255534,1775058644732,-1000.0,0.0001597,2]
[419255535,1775058644741,-500.0,0.0001597,2]
[419255536,1775058644750,-1000.0,0.0001597,2]
[419255537,1775058644759,-500.0,0.0001597,2]
[419255538,1775058644770,-1000.0,0.0001597,2]
[419255539,1775058644780,-500.0,0.0001597,2]
[419255540,1775058644790,-1000.0,0.0001597,2]
[419255541,1775058644801,-500.0,0.0001597,2]
[419255542,1775058644816,-1188.51483974,0.0001597,2]
[419255543,1775058644826,-500.0,0.0001597,2]
[419255544,1775058644836,-762.87386502,0.0001597,2]
[419255545,1775058644846,-306.259251,0.00015972,2]
[419255546,1775058644857,-502.3938553,0.00015973,2]
[419255547,1775058644867,-672.00857251,0.0001598,2]
[419255548,1775058644877,-209815.6609219,0.00015981,2]
[419255549,1775058644887,-383692.8254791,0.00015981,2]
[419255551,1775058645035,-4368.552554,0.00015981,2]
[419255555,1775058646159,-645.75968916,0.00015981,2]
[419255556,1775058646213,-12471.78560639,0.00015981,2]
[419255558,1775058646374,-61550.02770132,0.00015981,2]
[419255559,1775058646428,-4930.54698951,0.00015981,2]
[419255560,1775058646538,-3719.89819491,0.00015981,2]
[419255581,1775058649473,-347.0,0.000159,5]
[419255582,1775058649484,-111315.90637692,0.00015981,2]
[419255583,1775058649498,-5340.95403698,0.00015981,2]
[419255585,1775058649644,-346.4546635,0.00015981,2]
[419255642,1775059832061,-640.03,0.00010281,2]
[419255643,1775059832070,-690.0,0.00010495,2]
[419255644,1775059832086,-1142.74150189,0.000106,5]
[419255645,1775059832098,-1581.25849811,0.000106,5]
[419255646,1775059832108,-250.0,0.00010747,2]
[419255647,1775059832118,-315.93741298,0.00010994,2]
[419255648,1775059832127,-1693.98939059,0.00011,2]
[419255649,1775059832137,-1200.0,0.00011057,2]
[419255650,1775059832147,-500.0,0.00011058,2]
[419255651,1775059832156,-574.05681539,0.00011058,2]
[419255652,1775059832172,-1311.58765419,0.00011058,2]
[419255653,1775059832189,-1110.61079819,0.00011058,2]
[419255654,1775059832233,-402.11590291,0.00011058,2]
[419255732,1775059839693,-323.28356701,0.00011058,2]
[419255735,1775059839717,-618.58782579,0.00011058,2]
[419255739,1775059839741,-1852.927,0.00011058,2]
[419255750,1775059839842,-1972.78274802,0.00011058,2]
[419255753,1775059839855,-7060.92014268,0.00011058,2]
[419255756,1775059839879,-3701.07149798,0.00011058,2]
[419255758,1775059839891,-4068.22603896,0.00011058,2]
[419255761,1775059839903,-12309.54627845,0.00011058,2]
[419255764,1775059839915,-740.99223043,0.00011058,2]
[419255767,1775059839925,-600.0,0.00011158,2]
[419255769,1775059839934,-150.0,0.000113,2]
[419255771,1775059839943,-300.0,0.00011309,2]
[419255773,1775059839952,-188.92935304,0.00011309,2]
[419255777,1775059839989,-111.07064696,0.00011309,2]
[419255780,1775059839999,-600.0,0.00011383,2]
[419255781,1775059840008,-465.48435304,0.00011383,2]
[419255785,1775059841005,-134.51564696,0.00011383,2]
[419255786,1775059841015,-600.0,0.00011383,2]
[419255787,1775059841026,-478.37,0.00011393,2]
[419255788,1775059841037,-250.0,0.00011544,2]
[419255789,1775059841046,-572.0,0.00012011,2]
[419255790,1775059841056,-480.0,0.00012163,2]
[419255791,1775059841065,-600.0,0.00012274,2]
[419255792,1775059841075,-386.04,0.00012476,2]
[419255793,1775059841086,-173.0,0.00012526,2]
[419255794,1775059841097,-349.0,0.00012551,2]
[419255795,1775059841106,-192.1842,0.000126,7]
[419255796,1775059841116,-151.0,0.00012788,2]
[419255797,1775059841126,-151.0,0.00012788,2]
[419255798,1775059841136,-151.0,0.00012788,2]
[419255799,1775059841145,-151.0,0.00012788,2]
[419255800,1775059841156,-151.0,0.00012788,2]
[419255801,1775059841167,-151.0,0.00012788,2]
[419255802,1775059841177,-151.0,0.00012788,2]
[419255803,1775059841187,-151.0,0.00012788,2]
[419255804,1775059841200,-151.0,0.00012788,2]
[419255805,1775059841209,-151.0,0.00012788,2]
[419255806,1775059841218,-151.0,0.00012788,2]
[419255807,1775059841227,-151.0,0.00012788,2]
[419255808,1775059841236,-250.0,0.00013,2]
[419255809,1775059841245,-510.0,0.00013111,2]
[419255810,1775059841254,-1602.99,0.00013273,2]
[419255811,1775059841263,-500.0,0.00013478,2]
[419255812,1775059841272,-18774.05,0.00013481,2]
[419255813,1775059841282,-250.0,0.00013585,2]
[419255815,1775059841291,-166.66,0.00013699,2]
[419255816,1775059841300,-9999.99,0.00013699,2]
[419255818,1775059841309,-511.62,0.00013784,2]
[419255819,1775059841319,-166.66,0.00013836,2]
[419255820,1775059841328,-246.2319,0.000139,12]
[419255821,1775059841337,-161.58,0.00013908,2]
[419255822,1775059841346,-166.66,0.00013973,2]
[419255823,1775059841357,-500.0,0.00013973,2]
[419255824,1775059841367,-2646.6329,0.00013997,2]
[419255825,1775059841376,-166.66,0.0001411,2]
[419255826,1775059841386,-200.0,0.00014233,2]
[419255827,1775059841395,-166.66,0.00014247,2]
[419255828,1775059841404,-161.58,0.00014367,2]
[419255829,1775059841413,-166.66,0.00014384,2]
[419255830,1775059841422,-160.0,0.00014512,2]
[419255831,1775059841431,-160.0,0.00014512,2]
[419255832,1775059841440,-2020.16859974,0.00014552,2]
[419255833,1775059841449,-421.38,0.00014648,2]
[419255834,1775059841459,-2500.0,0.00014726,2]
[419255835,1775059841468,-428.2806,0.00014729,2]
[419255836,1775059841477,-1000.0,0.00014729,2]
[419255837,1775059841486,-3653.3064,0.00014795,2]
[419255838,1775059841495,-161.58,0.00014826,2]
[419255839,1775059841505,-500.0,0.0001483,2]
[419255840,1775059841514,-568.37,0.0001483,2]
[419255841,1775059841523,-500.0,0.00014904,2]
[419255842,1775059841532,-207.97458072,0.00014984,2]
[419255843,1775059841541,-203.30495272,0.00014984,2]
[419255844,1775059841551,-500.0,0.00015,2]
[419255845,1775059841560,-500.0,0.00015,2]
[419255846,1775059841569,-500.0,0.00015,2]
[419255847,1775059841578,-500.0,0.00015,2]
[419255848,1775059841588,-500.0,0.00015,2]
[419255849,1775059841597,-500.0,0.00015,2]
[419255850,1775059841606,-500.0,0.00015,2]
[419255851,1775059841616,-500.0,0.00015,2]
[419255852,1775059841625,-500.0,0.00015,2]
[419255853,1775059841635,-500.0,0.00015,2]
[419255854,1775059841647,-500.0,0.00015,2]
[419255855,1775059841659,-500.0,0.00015,2]
[419255856,1775059841668,-500.0,0.00015,2]
[419255857,1775059841679,-500.0,0.00015,2]
[419255858,1775059841689,-500.0,0.00015,2]
[419255859,1775059841699,-500.0,0.00015,2]
[419255860,1775059841709,-500.0,0.00015,2]
[419255861,1775059841719,-500.0,0.00015,2]
[419255862,1775059841728,-500.0,0.00015,2]
[419255863,1775059841737,-500.0,0.00015,2]
[419255864,1775059841747,-500.0,0.00015,2]
[419255865,1775059841758,-500.0,0.00015,2]
[419255866,1775059841767,-500.0,0.00015,2]
[419255867,1775059841776,-500.0,0.00015,2]
[419255868,1775059841785,-500.0,0.00015,2]
[419255869,1775059841795,-500.0,0.00015,2]
[419255870,1775059841805,-500.0,0.00015,2]
[419255871,1775059841815,-500.0,0.00015,2]
[419255872,1775059841824,-500.0,0.00015,2]
[419255873,1775059841833,-500.0,0.00015,2]
[419255874,1775059841843,-500.0,0.00015,2]
[419255875,1775059841852,-500.0,0.00015,2]
[419255876,1775059841862,-500.0,0.00015,2]
[419255877,1775059841871,-500.0,0.00015,2]
[419255878,1775059841880,-500.0,0.00015,2]
[419255879,1775059841890,-264.73,0.00015,2]
[419255880,1775059841901,-500.0,0.00015,2]
[419255881,1775059841910,-500.0,0.00015,2]
[419255882,1775059841919,-500.0,0.00015,2]
[419255883,1775059841929,-500.0,0.00015,2]
[419255884,1775059841939,-500.0,0.00015,2]
[419255885,1775059841948,-500.0,0.00015,2]
[419255886,1775059841957,-500.0,0.00015,2]
[419255887,1775059841966,-1002.59070664,0.00015,2]
[419255888,1775059841975,-300.0,0.00015,2]
[419255889,1775059841985,-500.0,0.00015,6]
[419255890,1775059841994,-500.0,0.00015,6]
[419255891,1775059842003,-500.0,0.00015,6]
[419255892,1775059842013,-500.0,0.00015,6]
[419255893,1775059842022,-500.0,0.00015,6]
[419255894,1775059842043,-160.0,0.00015,2]
[419255895,1775059842053,-14193.25412751,0.00015,7]
[419255896,1775059842063,-487.19674021,0.00015076,2]
[419255897,1775059842072,-263.61903177,0.00015097,2]
[419255898,1775059842081,-2000.0,0.000151,2]